bitfinex/quotes_ETHUSD_20240709
["timestamp","ask_amount","ask_price","bid_price","bid_amount"]
[1720503545531,0.3883048,3068.0,3065.8,2.4038]
[1720503545739,0.43246362,3068.0,3065.8,2.63355462]
[1720503545966,0.70081998,3068.0,3065.9,1.13489584]
[1720503546256,0.04415882,3068.0,3066.9,2.272]
[1720503547323,0.04415882,3068.0,3066.4,2.272]
[1720503547617,2.4706,3067.9,3066.4,2.272]
[1720503547822,0.25147588,3067.8,3066.4,2.272]
[1720503548042,2.3043,3067.7,3065.9,2.272]
[1720503548245,2.34797074,3067.7,3065.9,2.272]
[1720503548444,2.3043,3067.6,3065.4,0.16537759]
[1720503548665,2.3043,3067.6,3065.1,4.6315]
[1720503548666,2.3414,3067.5,3065.6,2.272]
[1720503548826,2.81522604,3067.5,3065.6,2.272]
[1720503549679,2.3414,3067.3,3065.6,2.272]
[1720503549964,2.3414,3067.0,3065.1,2.272]
[1720503550171,0.43004,3066.9,3065.1,2.272]
[1720503550329,2.3414,3066.5,3064.1,2.2724]
[1720503550528,2.3414,3066.5,3064.4,2.272]
[1720503550766,2.3414,3066.5,3064.5,0.06524827]
[1720503550767,0.47294417,3066.4,3064.5,0.06524827]
[1720503550963,0.81396677,3066.4,3064.5,0.06524827]
[1720503551265,0.38392677,3066.4,3065.4,2.272]
[1720503551426,0.38392677,3066.4,3064.5,0.06524827]
[1720503551624,2.3111,3066.3,3064.7,2.272]
[1720503551861,2.35374941,3066.3,3064.7,2.272]
[1720503552048,2.62322661,3066.3,3064.7,2.272]
[1720503552767,2.62322661,3066.3,3064.2,2.272]
[1720503553127,4.4165,3066.2,3064.2,2.272]
[1720503553351,1.959,3065.8,3063.7,2.272]
[1720503553550,2.3069,3065.5,3063.6,0.10062634]
[1720503553954,2.3069,3065.3,3063.7,2.272]
[1720503554153,0.23488221,3065.2,3063.7,2.272]
[1720503554360,0.04186141,3065.2,3063.8,0.06526401]
[1720503554561,0.04186141,3065.2,3064.2,2.272]
[1720503554737,0.04186141,3065.2,3064.3,0.06525845]
[1720503554937,0.04186141,3065.2,3064.2,2.272]
[1720503555164,0.04186141,3065.2,3063.7,2.272]
[1720503555165,0.23487614,3065.2,3063.7,2.272]
[1720503555738,0.04154676,3065.1,3063.7,2.272]
[1720503556189,0.04154676,3065.1,3063.7,2.33726382]
[1720503556390,0.23487614,3065.2,3063.7,2.272]
[1720503556556,0.23487614,3065.2,3063.7,2.122]
[1720503556746,0.29571856,3065.1,3063.7,2.122]
[1720503557259,2.4154,3065.0,3063.6,0.10062634]
[1720503557465,2.45690188,3065.0,3063.6,0.10062634]
[1720503557731,0.27110795,3064.9,3063.6,0.10062634]
[1720503558190,0.04139319,3064.8,3063.7,2.272]
[1720503558387,0.04139319,3064.8,3063.8,0.06526092]
[1720503558607,0.04139319,3064.8,3064.2,2.272]
[1720503558910,2.3781,3065.5,3064.2,2.272]
[1720503559184,0.04134117,3064.7,3063.8,3.0]
[1720503559384,2.4295,3065.3,3063.7,2.272]
[1720503559685,2.2802,3065.1,3063.6,0.10062634]
[1720503560060,0.04123138,3065.0,3063.6,0.10062634]
[1720503560883,0.04123138,3065.0,3063.7,2.272]
[1720503561085,0.27337452,3065.0,3063.8,0.55]
[1720503561297,0.27337452,3065.0,3063.8,3.55]
[1720503561503,0.27337452,3065.0,3063.8,3.0]
[1720503561793,2.3289,3064.9,3063.6,0.10062634]
[1720503561958,0.26022745,3064.8,3063.6,0.10062634]
[1720503562170,0.30178158,3064.8,3063.6,0.10062634]
[1720503564399,2.2786,3064.7,3063.6,0.10062634]
[1720503564691,0.04136287,3064.6,3063.6,0.10062634]
[1720503565057,2.2573,3064.5,3063.6,0.10062634]
[1720503565316,0.22986629,3064.4,3063.6,0.10062634]
[1720503565892,1.959,3064.2,3063.6,0.10062634]
[1720503566066,4.4026,3064.1,3063.6,0.10062634]
[1720503566276,4.4026,3064.1,3061.3,1.308974]
[1720503566277,1.959,3063.6,3061.3,1.308974]
[1720503566457,1.959,3063.4,3061.3,1.308974]
[1720503566673,0.652,3063.3,3061.3,2.272]
[1720503566963,0.652,3063.3,3061.4,0.06531428]
[1720503566964,0.69301736,3063.3,3061.4,0.06531428]
[1720503567355,0.69301736,3063.3,3061.2,2.272]
[1720503567755,0.69301736,3063.3,3061.7,2.272]
[1720503568567,0.69301736,3063.3,3061.5,2.3491]
[1720503568568,0.69301736,3063.3,3062.2,2.272]
[1720503568783,0.652,3063.3,3062.2,2.272]
[1720503568986,0.652,3063.3,3062.3,0.55]
[1720503569199,0.652,3063.3,3062.3,3.0]
[1720503569386,0.652,3063.3,3061.8,3.0]
[1720503569586,0.652,3063.3,3061.9,0.55]
[1720503569587,0.04033695,3063.2,3061.9,0.55]
[1720503569794,0.652,3063.3,3061.9,0.06530673]
[1720503569993,0.652,3063.3,3062.3,2.272]
[1720503570500,0.652,3063.3,3061.8,2.272]
[1720503570888,0.652,3063.3,3061.9,0.06530092]
[1720503571215,0.34104305,3064.3,3062.4,2.272]
[1720503571216,2.3969,3064.2,3062.4,2.272]
[1720503571400,0.04040084,3063.2,3062.9,2.272]
[1720503571709,0.27379431,3064.1,3062.9,2.272]
[1720503571874,0.04035011,3063.1,3062.9,2.272]
[1720503572074,0.27379431,3064.1,3062.4,2.272]
[1720503572375,0.29973943,3064.0,3062.4,2.272]
[1720503572607,0.04048875,3063.9,3062.5,0.06529744]
[1720503572781,0.04048875,3063.9,3062.6,0.55]
[1720503572981,0.04048875,3063.9,3062.7,0.06528717]
[1720503573301,0.04048875,3063.9,3062.8,0.55]
[1720503573482,0.04048875,3063.9,3062.5,3.0]
[1720503573689,4.2773,3063.8,3062.4,2.272]
[1720503573876,4.2773,3063.8,3061.9,2.272]
[1720503573877,2.3183,3063.6,3061.9,2.272]
[1720503574313,0.04054711,3063.5,3061.9,2.272]
[1720503574978,0.04054711,3063.5,3062.0,0.06530144]
[1720503575400,0.04054711,3063.5,3061.9,2.272]
[1720503575605,0.23588471,3063.4,3061.9,2.272]
[1720503575807,0.04044968,3063.3,3061.9,2.272]
[1720503576015,0.04044968,3063.3,3062.0,0.55]
[1720503576220,0.04044968,3063.3,3062.0,3.55]
[1720503576380,2.4312,3063.2,3061.4,2.272]
[1720503576577,2.4413,3063.0,3061.4,2.272]
[1720503576811,0.04036983,3062.9,3061.4,2.272]
[1720503577031,2.48166983,3062.9,3061.4,2.272]
[1720503578013,2.48166983,3062.9,3061.5,0.06532104]
[1720503578196,2.48166983,3062.9,3061.9,2.272]
[1720503578398,2.2718,3063.4,3062.0,0.0653035]
[1720503578695,0.04018324,3063.3,3062.4,2.272]
[1720503578895,2.2718,3063.4,3062.5,0.6152911]
[1720503579107,2.2718,3063.4,3062.5,3.6152911]
[1720503579287,2.3384,3063.9,3062.5,3.6152911]
[1720503579482,0.04019482,3063.3,3062.5,3.6152911]
[1720503579798,0.04016155,3063.2,3062.5,3.6152911]
[1720503580116,0.34104305,3064.3,3062.9,2.272]
[1720503580329,2.3384,3064.5,3063.5,2.272]
[1720503580484,0.23384,3064.4,3063.0,2.272]
[1720503580684,0.23384,3064.4,3062.5,0.55]
[1720503580685,2.3384,3064.3,3062.6,3.0]
[1720503581419,1.959,3064.2,3062.6,3.0]
[1720503581579,1.959,3064.2,3062.5,2.272]
[1720503581580,2.499,3064.1,3062.5,2.272]
[1720503581894,2.6949,3064.1,3062.5,2.272]
[1720503582093,2.6949,3064.1,3061.8,3.0]
[1720503582296,2.4481,3064.0,3062.1,2.272]
[1720503582513,2.4481,3063.8,3062.1,2.272]
[1720503582829,0.04023089,3063.7,3062.1,2.272]
[1720503582986,0.04023089,3063.7,3062.2,0.55]
[1720503583695,2.4799,3063.6,3062.2,3.55]
[1720503583899,0.25201309,3063.5,3062.2,3.55]
[1720503584115,0.29239442,3063.5,3062.2,3.0]
[1720503584301,0.29239442,3063.5,3062.1,2.272]
[1720503585618,0.29239442,3063.5,3062.2,0.55]
[1720503585800,0.27722944,3063.4,3062.2,3.55]
[1720503585991,0.04028319,3063.3,3062.2,3.55]
[1720503587121,2.3507,3063.2,3062.2,3.0]
[1720503587321,2.39095567,3063.2,3061.6,2.272]
[1720503587525,1.959,3063.9,3061.6,2.272]
[1720503587526,2.3507,3063.0,3061.6,2.272]
[1720503588131,0.03992832,3062.9,3061.7,0.06531236]
[1720503588310,0.03992832,3062.9,3062.1,2.272]
[1720503588517,2.3507,3063.0,3062.2,0.06529975]
[1720503588914,2.3507,3063.0,3062.3,0.55]
[1720503589133,2.3507,3063.0,3062.2,0.06529975]
[1720503589134,2.58577,3063.0,3062.2,3.0]
[1720503589421,2.58577,3063.0,3062.1,2.272]
[1720503589422,0.04003877,3062.9,3062.1,2.272]
[1720503589635,0.26258088,3062.8,3061.6,2.272]
[1720503589957,0.30254563,3062.8,3061.6,2.272]
[1720503590425,2.4685,3062.7,3061.6,2.272]
[1720503590632,2.4685,3062.7,3060.8,0.66932006]
[1720503590633,2.4685,3062.7,3061.1,2.272]
[1720503590793,0.27710456,3062.6,3061.1,2.272]
[1720503590994,0.03989381,3062.5,3061.6,2.272]
[1720503592027,0.03989381,3062.5,3061.7,0.55]
[1720503592214,0.03989381,3062.5,3061.7,3.55]
[1720503592420,0.03989381,3062.5,3061.7,3.0]
[1720503592589,0.31844365,3062.5,3061.6,2.272]
[1720503592913,0.27854984,3062.5,3061.6,2.272]
[1720503593122,2.4685,3062.7,3061.6,2.272]
[1720503595401,2.4685,3062.7,3061.7,1.13670398]
[1720503595595,2.4685,3062.7,3061.7,3.0]
[1720503596193,2.4685,3062.7,3061.6,5.272]
[1720503596393,2.4685,3062.7,3061.7,2.84175258]
[1720503596626,0.24685,3062.6,3061.8,1.13670789]
[1720503597159,0.24685,3062.6,3061.6,5.272]
[1720503597434,0.24685,3062.6,3061.4,2.37436475]
[1720503597435,2.4688,3062.5,3061.7,1.13677277]
[1720503597635,2.50883946,3062.5,3061.4,0.66932006]
[1720503597799,2.50883946,3062.5,3061.5,2.842028]
[1720503597996,2.4688,3062.5,3061.6,2.84201965]
[1720503598201,0.28688618,3062.4,3061.5,1.70521179]
[1720503598396,0.28688618,3062.4,3061.5,0.66932006]
[1720503598637,0.24688,3062.4,3061.6,2.84201775]
[1720503598812,0.24688,3062.4,3061.7,1.1368071]
[1720503599009,0.24688,3062.4,3061.6,1.70522376]
[1720503599215,0.271568,3062.3,3061.4,0.66932006]
[1720503599534,0.271568,3062.3,3061.5,2.84209735]
[1720503599838,0.271568,3062.3,3061.4,0.66932006]
[1720503599839,2.4688,3062.5,3061.6,1.13684118]
[1720503600010,2.4688,3062.5,3061.4,0.66932006]
[1720503600011,0.03997436,3062.2,3061.7,2.84203645]
[1720503600210,2.4688,3062.5,3061.6,1.70518862]
[1720503600425,0.03993641,3062.4,3061.7,2.84196149]
[1720503600629,2.4688,3062.5,3061.9,0.66932006]
[1720503600801,2.4688,3062.5,3062.0,3.52308411]
[1720503600999,2.4688,3062.5,3061.8,0.68141413]
[1720503601314,2.4688,3062.5,3061.9,2.84175335]
[1720503601512,2.4688,3062.5,3062.0,2.84175335]
[1720503601711,2.3095,3063.9,3062.1,1.13670134]
[1720503601942,0.03982492,3062.4,3062.2,2.8415677]
[1720503602154,2.3095,3062.3,3061.7,0.68141413]
[1720503602460,0.23095,3062.2,3061.3,2.38666551]
[1720503602634,0.03978151,3062.2,3061.5,3.01873836]
[1720503602833,2.3095,3063.6,3061.8,0.68141413]
[1720503603146,1.16937177,3063.5,3062.0,2.95341413]
[1720503603357,0.34788718,3063.4,3062.1,0.68141413]
[1720503603642,0.34788718,3063.4,3062.2,2.84138582]
[1720503603798,0.34788718,3063.4,3062.3,1.13655433]
[1720503603999,2.3095,3063.6,3062.5,0.68141413]
[1720503604199,2.3095,3063.6,3062.6,2.90664756]
[1720503604438,2.3095,3063.6,3062.7,2.84135183]
[1720503604745,2.3095,3063.6,3062.8,2.84135183]
[1720503604904,2.54045,3063.6,3062.7,1.7048111]
[1720503605249,0.03833643,3063.5,3062.8,2.90644528]
[1720503605405,0.03833643,3063.5,3063.0,2.272]
[1720503605600,0.03833643,3063.5,3063.1,3.58784867]
[1720503605819,6.9425033,3063.9,3063.2,2.84114959]
[1720503606045,2.4359,3064.2,3063.3,2.90643097]
[1720503606208,2.2744,3064.6,3063.6,0.68141413]
[1720503606402,8.9015033,3065.6,3063.6,0.68141413]
[1720503606403,2.2744,3065.1,3064.0,2.272]
[1720503606650,2.2744,3065.1,3064.1,3.45590345]
[1720503606651,0.03936622,3065.0,3064.1,3.45590345]
[1720503606856,2.2744,3065.1,3064.3,0.68141413]
[1720503607020,2.2744,3065.1,3064.4,0.55]
[1720503607215,19.4025033,3066.2,3064.4,0.55]
[1720503607216,2.2744,3066.1,3064.4,0.55]
[1720503607401,1.42398748,3066.0,3064.5,1.13567532]
[1720503607730,1.42398748,3066.0,3064.3,0.55]
[1720503607731,0.03965271,3066.0,3064.3,0.55]
[1720503607902,2.3442,3065.8,3064.2,3.0]
[1720503608101,1.959,3065.6,3064.0,2.95402319]
[1720503608305,2.3442,3065.7,3064.0,2.95402319]
[1720503608306,0.43032,3065.5,3064.1,4.135802]
[1720503608503,2.3442,3065.7,3064.1,3.0]
[1720503608775,2.3442,3065.7,3064.0,5.272]
[1720503608776,0.03929396,3065.4,3064.0,5.272]
[1720503608919,0.03949215,3065.6,3064.1,1.13575287]
[1720503609117,0.03927229,3065.3,3064.1,4.13575287]
[1720503609307,0.23836922,3065.5,3064.1,3.0]
[1720503609504,0.23836922,3065.5,3064.0,5.272]
[1720503609823,1.959,3065.1,3063.5,2.272]
[1720503610026,0.03944884,3065.4,3063.5,2.272]
[1720503610027,1.01738334,3067.5,3064.9,2.3971]
[1720503610206,2.37119019,3068.3,3064.9,2.3971]
[1720503610207,1.35651112,3068.8,3065.4,3.07821594]
[1720503610403,1.5,3067.9,3065.5,1.81703629]
[1720503610605,1.5,3067.9,3065.2,0.68111594]
[1720503610606,1.959,3067.6,3065.2,0.68111594]
[1720503610818,0.03332688,3067.5,3065.0,0.68111594]
[1720503611025,1.959,3067.4,3065.1,1.13529575]
[1720503611239,0.03332688,3067.5,3065.2,0.61523075]
[1720503611441,0.03359532,3067.3,3065.9,2.272]
[1720503611742,0.03365343,3067.2,3065.9,2.272]
[1720503611942,0.2463,3067.6,3065.9,2.272]
[1720503612669,0.03372609,3067.5,3065.9,2.272]
[1720503613335,0.03372609,3067.5,3064.7,2.3971]
[1720503613336,0.03372609,3067.5,3065.4,2.272]
[1720503613641,1.959,3067.3,3065.4,2.272]
[1720503613933,0.46576079,3067.2,3065.5,0.06524115]
[1720503614166,0.46576079,3067.2,3065.9,2.272]
[1720503615550,2.42476079,3067.2,3065.9,2.272]
[1720503615770,0.24247608,3067.1,3065.9,2.272]
[1720503616290,0.46576079,3067.2,3065.9,2.272]
[1720503616291,0.03443773,3067.0,3065.9,2.272]
[1720503616774,0.03443773,3067.0,3066.4,2.272]
[1720503616985,0.03443773,3067.0,3066.9,2.272]
[1720503617141,6.9425033,3067.8,3066.9,2.272]
[1720503617340,12.46,3068.2,3066.9,2.272]
[1720503617341,0.03435365,3067.0,3066.9,2.272]
[1720503617659,6.9425033,3068.2,3066.9,2.822]
[1720503617861,12.46,3068.6,3067.4,2.272]
[1720503617862,0.03463798,3068.1,3067.4,2.272]
[1720503618174,6.9425033,3068.6,3067.4,2.272]
[1720503618377,0.03465348,3068.0,3067.4,2.272]
[1720503618574,0.93776033,3068.5,3067.4,2.272]
[1720503618752,0.93776033,3068.5,3067.0,5.4875]
[1720503618753,0.03478595,3067.9,3067.0,5.4875]
[1720503619081,0.93776033,3068.5,3067.0,5.4875]
[1720503619082,0.03476433,3067.8,3067.1,0.55]
[1720503619242,0.93776033,3068.5,3067.1,0.55]
[1720503619443,0.82292039,3068.4,3067.1,0.55]
[1720503620251,0.82292039,3068.4,3067.0,3.0]
[1720503620568,0.82292039,3068.4,3066.7,2.389]
[1720503620887,0.82292039,3068.4,3066.3,3.06520057]
[1720503620888,2.78192039,3068.4,3066.3,3.0]
[1720503621201,0.27819204,3068.3,3066.2,5.3397]
[1720503621481,0.03451635,3068.2,3066.2,5.3397]
[1720503621988,0.03451635,3068.2,3066.3,0.06520821]
[1720503622547,0.03451635,3068.2,3066.4,0.55]
[1720503624680,0.03451635,3068.2,3066.5,0.06519989]
[1720503624887,0.03451635,3068.2,3066.6,0.55]
[1720503625088,0.78802636,3068.4,3066.6,0.55]
[1720503625291,0.03298382,3068.1,3066.6,0.55]
[1720503625493,0.78802636,3068.4,3066.7,2.45419626]
[1720503625494,0.03316033,3068.3,3066.7,2.45419626]
[1720503625809,0.0329622,3068.0,3066.8,0.61519622]
[1720503625971,0.03319662,3068.2,3067.3,2.389]
[1720503626154,0.03292322,3067.9,3067.4,0.55]
[1720503626360,6.9425033,3068.6,3067.4,0.55]
[1720503626589,0.03180416,3067.8,3067.4,3.55]
[1720503626790,6.9425033,3068.6,3067.4,3.55]
[1720503627191,0.03211228,3068.5,3067.4,3.55]
[1720503629821,0.03211228,3068.5,3067.5,0.06518036]
[1720503629992,0.03211228,3068.5,3067.6,0.55]
[1720503630400,0.03211228,3068.5,3067.5,0.55]
[1720503631200,0.03211228,3068.5,3067.3,2.389]
[1720503631402,2.4829,3068.4,3066.7,4.7176]
[1720503631826,0.03228605,3068.3,3066.7,4.7176]
[1720503632126,0.25151861,3068.2,3066.7,2.389]
[1720503632298,0.31765592,3068.2,3066.7,2.389]
[1720503633577,0.31765592,3068.2,3066.8,0.06519553]
[1720503634003,0.31765592,3068.2,3066.9,0.55]
[1720503634182,0.31765592,3068.2,3067.0,0.06519483]
[1720503634382,0.31765592,3068.2,3067.1,0.55]
[1720503634383,0.06613731,3068.2,3067.1,0.55]
[1720503634916,6.9425033,3068.6,3067.3,2.389]
[1720503635135,0.06593384,3068.1,3067.4,0.55]
[1720503635412,6.9425033,3068.6,3067.4,0.55]
[1720503635615,6.9425033,3068.6,3067.4,3.55]
[1720503635823,0.0659415,3068.5,3067.4,3.61517853]
[1720503637294,0.06376322,3068.4,3067.4,3.61517853]
[1720503637943,5.79842887,3069.1,3067.4,3.61517853]
[1720503638235,0.06388826,3068.3,3067.4,3.61517853]
[1720503638393,2.2531,3069.5,3067.4,3.61517853]
[1720503638394,5.79842887,3069.1,3067.4,3.61517853]
[1720503638586,0.57984289,3069.0,3067.4,3.61517853]
[1720503638787,0.06403183,3069.0,3067.4,3.61517853]
[1720503639187,2.2531,3069.5,3067.4,3.61517853]
[1720503639397,0.06382551,3068.9,3067.4,3.61517853]
[1720503639584,2.2531,3069.5,3067.4,3.61517853]
[1720503639782,0.06407157,3068.8,3067.4,3.61517853]
[1720503640008,2.2531,3069.5,3067.4,3.61517853]
[1720503640193,0.06404998,3068.7,3067.4,3.55]
[1720503640406,2.2531,3069.5,3067.4,3.55]
[1720503640609,2.2531,3069.5,3067.9,2.274]
[1720503640796,1.0655067,3069.4,3067.9,2.274]
[1720503641385,1.0655067,3069.4,3067.9,2.25673188]
[1720503642497,1.0655067,3069.4,3068.0,0.55]
[1720503642712,1.0655067,3069.4,3068.4,2.274]
[1720503642918,0.06445381,3069.4,3068.4,2.274]
[1720503646305,5.79842887,3069.9,3068.1,3.0]
[1720503646306,5.79842887,3069.9,3068.9,2.274]
[1720503646609,5.79842887,3069.9,3069.0,0.06516063]
[1720503646610,0.0646117,3069.3,3069.0,0.06516063]
[1720503646804,5.79842887,3069.9,3069.0,0.06516063]
[1720503647342,0.06446628,3069.8,3069.1,0.24581299]
[1720503647501,0.06446628,3069.8,3069.0,3.0]
[1720503647702,2.4918,3070.1,3069.0,3.0]
[1720503647703,2.4918,3070.1,3069.0,0.06515617]
[1720503647935,0.06463995,3069.7,3069.0,0.06515617]
[1720503648152,2.4918,3070.1,3069.0,0.06515617]
[1720503648445,0.06472155,3069.6,3068.9,2.274]
[1720503648597,0.24918,3070.0,3069.0,0.55]
[1720503648805,0.06480128,3069.5,3069.0,3.61515577]
[1720503649003,0.24918,3070.0,3069.0,3.61515577]
[1720503649204,0.06478078,3069.4,3069.0,3.61515577]
[1720503649443,0.24918,3070.0,3069.0,3.61515577]
[1720503649646,0.06459965,3069.3,3069.0,3.61515577]
[1720503649845,0.24918,3070.0,3069.0,3.61515577]
[1720503650044,0.24918,3070.0,3069.0,3.0]
[1720503650257,2.4918,3070.1,3068.9,2.274]
[1720503650258,0.33886455,3069.9,3068.9,2.274]
[1720503650752,0.33886455,3069.9,3069.0,0.61515701]
[1720503650960,0.34067071,3069.8,3069.0,0.61515701]
[1720503651254,0.405532,3069.8,3069.0,3.55]
[1720503652626,0.405532,3069.8,3069.1,0.06515681]
[1720503653047,0.405532,3069.8,3069.2,0.06515681]
[1720503653364,0.34067071,3069.8,3069.5,2.274]
[1720503656463,0.34067071,3069.8,3069.0,5.274]
[1720503656831,0.34067071,3069.8,3069.0,2.274]
[1720503657046,0.06271239,3069.7,3068.8,1.70097612]
[1720503657246,0.06271239,3069.7,3068.7,2.37822853]
[1720503657472,0.60738778,3069.8,3068.8,3.5123476]
[1720503657759,0.06061463,3069.7,3069.0,2.95125241]
[1720503657936,0.06061463,3069.7,3069.1,1.13411907]
[1720503658133,0.06061463,3069.7,3069.0,3.97497612]
[1720503658440,0.06061463,3069.7,3069.1,2.83499233]
[1720503658656,0.06061463,3069.7,3069.2,1.13401621]
[1720503658964,0.34067071,3069.8,3069.1,1.70097612]
[1720503659164,0.34067071,3069.8,3069.0,2.95125241]
[1720503659165,0.06065012,3069.6,3069.0,3.01640815]
[1720503659324,0.34067071,3069.8,3069.1,3.51214504]
[1720503659522,0.06072381,3069.5,3069.2,2.83489263]
[1720503659740,0.06072381,3069.5,3069.3,1.19908794]
[1720503659947,0.34067071,3069.8,3069.4,1.13395191]
[1720503660164,0.34067071,3069.8,3069.5,2.90003893]
[1720503660362,0.34067071,3069.8,3069.6,2.83488749]
[1720503660525,0.34067071,3069.8,3069.7,2.83488749]
[1720503660926,8.18172887,3070.9,3069.7,7.0621399]
[1720503661124,5.79842887,3071.4,3070.1,2.274]
[1720503661384,0.34063843,3070.7,3070.2,1.19879199]
[1720503661562,5.79842887,3071.4,3070.3,4.12838942]
[1720503661866,12.46,3071.9,3070.3,4.12838942]
[1720503661867,8.18172887,3071.9,3070.5,0.67938821]
[1720503662067,2.3833,3071.9,3070.6,5.72262452]
[1720503662279,5.79842887,3072.4,3070.6,5.72262452]
[1720503662280,5.79842887,3072.4,3071.1,2.274]
[1720503662565,0.34061538,3072.3,3071.2,3.44861362]
[1720503662763,0.34061538,3072.3,3071.3,1.19831221]
[1720503662951,0.34061538,3072.3,3071.4,1.13320267]
[1720503663164,0.34061538,3072.3,3071.3,1.76491355]
[1720503663165,0.34061538,3072.3,3071.3,0.06510954]
[1720503663652,0.61378692,3072.3,3071.3,0.06510954]
[1720503663853,0.27317154,3072.3,3071.4,1.68310795]
[1720503664053,5.79842887,3072.8,3071.5,0.06510376]
[1720503664274,0.34056691,3072.7,3071.6,0.55]
[1720503664569,0.34056691,3072.7,3071.4,0.55]
[1720503664734,0.34056691,3072.7,3071.3,0.55]
[1720503664934,0.34056691,3072.7,3071.6,2.274]
[1720503665170,0.67566006,3072.6,3071.7,0.55]
[1720503665374,0.67566006,3072.6,3071.6,2.274]
[1720503665767,0.67566006,3072.6,3071.1,2.274]
[1720503666082,4.2365,3072.5,3070.6,2.274]
[1720503666582,3.38892983,3072.4,3070.6,2.274]
[1720503666755,5.34792983,3072.4,3070.6,2.274]
[1720503666958,5.34792983,3072.4,3069.8,3.56767292]
[1720503666959,1.959,3072.2,3070.1,2.274]
[1720503667268,1.959,3072.2,3069.6,2.274]
[1720503667269,1.959,3071.8,3069.6,2.274]
[1720503667482,2.4344,3071.9,3069.6,2.274]
[1720503667483,1.959,3071.6,3069.6,2.274]
[1720503667843,0.06195501,3071.5,3069.6,2.274]
[1720503668938,2.2857,3071.2,3069.1,2.274]
[1720503669145,0.3267,3071.1,3069.1,2.274]
[1720503669346,0.61668663,3071.0,3069.1,2.274]
[1720503669750,0.28998663,3071.0,3069.1,2.274]
[1720503669981,0.28998663,3071.0,3069.2,0.06514719]
[1720503670293,0.06141663,3071.0,3069.2,0.06514719]
[1720503670588,2.2555,3070.9,3068.7,2.274]
[1720503670789,0.0609469,3070.8,3068.8,0.06515447]
[1720503670990,0.0609469,3070.8,3069.2,2.274]
[1720503671292,0.0609469,3070.8,3069.7,2.274]
[1720503671579,3.0,3071.3,3069.7,2.274]
[1720503671783,0.0613415,3071.2,3069.3,3.0]
[1720503671989,0.0613415,3071.2,3069.2,2.274]
[1720503671990,2.2555,3071.0,3069.2,2.274]
[1720503672291,0.06128472,3070.9,3069.2,2.274]
[1720503672880,0.06128472,3070.9,3068.7,2.274]
[1720503673176,0.72757847,3070.8,3069.2,2.274]
[1720503673381,0.06115485,3070.7,3069.3,0.06514319]
[1720503673904,0.06115485,3070.7,3069.2,2.274]
[1720503674558,0.06115485,3070.7,3069.3,0.06515108]
[1720503674968,0.06115485,3070.7,3069.2,2.274]
[1720503677287,0.06115485,3070.7,3069.3,0.61515101]
[1720503677602,0.06115485,3070.7,3069.3,3.55]
[1720503677761,2.2555,3071.0,3069.3,3.0]
[1720503677958,0.06106191,3070.9,3068.7,2.274]
[1720503678199,0.06106191,3070.9,3068.8,0.55]
[1720503678371,4.3249,3070.7,3068.8,3.0]
[1720503678703,0.06093315,3070.6,3068.7,2.274]
[1720503678869,0.06093315,3070.6,3068.2,2.274]
[1720503678870,3.08761083,3070.5,3068.2,2.274]
[1720503679058,5.45354174,3070.4,3068.2,2.274]
[1720503679260,3.63299591,3070.3,3068.2,2.274]
[1720503679461,3.0,3070.2,3068.2,2.274]
[1720503679804,3.06118375,3070.2,3068.3,0.06516735]
[1720503680315,0.06118375,3070.2,3068.3,1.87870263]
[1720503680461,0.06118375,3070.2,3068.4,0.55]
[1720503680668,0.06118375,3070.2,3068.5,0.0651601]
[1720503680881,0.06118375,3070.2,3068.7,2.274]
[1720503681086,0.06118375,3070.2,3068.8,0.61516011]
[1720503681485,0.06118375,3070.2,3068.8,3.61516011]
[1720503681694,0.06118375,3070.2,3068.8,3.55]
[1720503683941,0.06118375,3070.2,3068.8,3.6151601]
[1720503684396,0.06118375,3070.2,3068.8,3.55]
[1720503685100,0.06118375,3070.2,3068.9,0.06515219]
[1720503685305,0.06118375,3070.2,3069.0,0.55]
[1720503686006,0.06118375,3070.2,3068.8,3.0]
[1720503686304,0.06118375,3070.2,3068.7,2.274]
[1720503686514,0.06118375,3070.2,3068.8,0.55]
[1720503686661,0.06118375,3070.2,3068.8,3.55]
[1720503687816,2.2871,3070.1,3068.2,2.274]
[1720503687965,2.2871,3070.1,3068.3,1.13417629]
[1720503688172,0.06092019,3070.0,3068.3,1.13417629]
[1720503688477,0.06092019,3070.0,3068.2,2.274]
[1720503688665,0.06092019,3070.0,3068.3,1.19935777]
[1720503688865,0.06092019,3070.0,3068.4,1.13419048]
[1720503689108,0.23480202,3069.9,3068.5,1.68419048]
[1720503689409,0.23480202,3069.9,3068.5,0.55]
[1720503689410,0.06080961,3069.8,3068.5,0.55]
[1720503689603,0.06080961,3069.8,3068.3,3.74591485]
[1720503689604,0.23480202,3069.9,3068.4,0.55]
[1720503689766,0.0607162,3069.8,3068.5,1.13410506]
[1720503689966,0.23480202,3069.9,3068.6,0.55]
[1720503690306,0.06070883,3069.8,3068.6,0.55]
[1720503690512,0.06070883,3069.8,3068.4,0.55]
[1720503690662,0.23480202,3069.9,3068.4,0.55]
[1720503691107,0.23480202,3069.9,3068.3,3.0]
[1720503691108,0.06071839,3069.8,3068.3,3.0]
[1720503691302,0.06071839,3069.8,3068.2,2.274]
[1720503691468,2.3448,3069.7,3068.2,2.274]
[1720503691904,0.06064878,3069.6,3068.2,2.274]
[1720503694918,2.4665,3069.5,3067.7,2.274]
[1720503695236,0.0602644,3069.4,3067.8,0.55]
[1720503695397,0.3069144,3069.4,3067.8,0.55]
[1720503696137,0.3069144,3069.4,3067.8,3.55]
[1720503702400,0.3069144,3069.4,3067.9,0.06517607]
[1720503702605,0.0602644,3069.4,3068.2,2.274]
[1720503702904,0.0602644,3069.4,3068.3,0.61517006]
[1720503703318,0.0602644,3069.4,3068.3,3.61517006]